[Event "Titled Tuesday Blitz June 20 Early 2023"]
[White "Fernandez Siles, Luis"]
[Black "Shubenkova, Veronika"]
[WhiteFideId "2209420"]
[BlackFideId "44124040"]
[WhiteElo "2195"]
[BlackElo "2060"]
[Result "1-0"]
[Round "3"]
[TimeControl "180+2"]
[Date "2023.06.20"]
[WhiteClock "0:00:26"]
[BlackClock "0:00:57"]
[Board "147"]

1. d4 {[%clk 0:03:00]}  d5 {[%clk 0:03:00]} 2. c4 {[%clk 0:02:59]}  e6 {[%clk 0:03:00]} 3. Nc3 {[%clk 0:02:58]}  Nf6 {[%clk 0:03:00]} 4. cxd5 {[%clk 0:02:57]}  exd5 {[%clk 0:03:00]} 5. Bg5 {[%clk 0:02:57]}  Be7 {[%clk 0:03:00]} 6. e3 {[%clk 0:02:55]}  O-O {[%clk 0:03:01]} 7. Qc2 {[%clk 0:02:54]}  c6 {[%clk 0:03:01]} 8. Bd3 {[%clk 0:02:54]}  Nbd7 {[%clk 0:03:01]} 9. Nf3 {[%clk 0:02:53]}  h6 {[%clk 0:03:01]} 10. Bf4 {[%clk 0:02:50]}  a6 {[%clk 0:02:59]} 11. h3 {[%clk 0:02:47]}  Re8 {[%clk 0:02:59]} 12. O-O {[%clk 0:02:46]}  Nf8 {[%clk 0:02:58]} 13. Ne5 {[%clk 0:02:45]}  Ne6 {[%clk 0:02:58]} 14. Bh2 {[%clk 0:02:30]}  c5 {[%clk 0:02:52]} 15. dxc5 {[%clk 0:02:25]}  Nxc5 {[%clk 0:02:52]} 16. Be2 {[%clk 0:02:09]}  Be6 {[%clk 0:02:52]} 17. Rfd1 {[%clk 0:02:07]}  b5 {[%clk 0:02:51]} 18. Bf3 {[%clk 0:02:03]}  b4 {[%clk 0:02:44]} 19. Ne2 {[%clk 0:01:58]}  Qb6 {[%clk 0:02:43]} 20. Nd4 {[%clk 0:01:51]}  Red8 {[%clk 0:02:41]} 21. Nxe6 {[%clk 0:01:47]}  Qxe6 {[%clk 0:02:39]} 22. Rac1 {[%clk 0:01:38]}  Rac8 {[%clk 0:02:39]} 23. Qe2 {[%clk 0:01:38]}  Nce4 {[%clk 0:02:37]} 24. Nd3 {[%clk 0:01:30]}  a5 {[%clk 0:02:35]} 25. Be5 {[%clk 0:01:25]}  Nd7 {[%clk 0:02:30]} 26. Bd4 {[%clk 0:01:22]}  Bf6 {[%clk 0:02:27]} 27. Nf4 {[%clk 0:01:17]}  Qd6 {[%clk 0:02:27]} 28. Rxc8 {[%clk 0:01:12]}  Rxc8 {[%clk 0:02:25]} 29. Nxd5 {[%clk 0:00:49]}  Bxd4 {[%clk 0:02:15]} 30. exd4 {[%clk 0:00:49]}  Qxd5 {[%clk 0:02:09]} 31. Qxe4 {[%clk 0:00:43]}  Qxa2 {[%clk 0:02:04]} 32. Qb7 {[%clk 0:00:38]}  Qc4 {[%clk 0:01:17]} 33. Qxd7 {[%clk 0:00:37]}  Rc7 {[%clk 0:01:17]} 34. Qe8+ {[%clk 0:00:34]}  Kh7 {[%clk 0:01:17]} 35. d5 {[%clk 0:00:30]}  Qf4 {[%clk 0:01:02]} 36. d6 {[%clk 0:00:27]}  Rc1 {[%clk 0:00:57]} 37. Qe4+ {[%clk 0:00:26]} 1-0


[Site "https://www.chess.com"]

[Event "Titled Tuesday Blitz June 20 Early 2023"]
[White "Kuznetsova, Olga"]
[Black "Alahakoon, Isuru"]
[WhiteFideId "4191323"]
[BlackFideId "9900993"]
[WhiteElo "2134"]
[BlackElo "1819"]
[Result "0-1"]
[Round "3"]
[TimeControl "180+2"]
[Date "2023.06.20"]
[WhiteClock "0:00:38"]
[BlackClock "0:00:37"]
[Board "151"]

1. d4 {[%clk 0:03:00]}  d5 {[%clk 0:02:59]} 2. c4 {[%clk 0:03:00]}  e6 {[%clk 0:02:59]} 3. Nc3 {[%clk 0:03:00]}  Nf6 {[%clk 0:02:58]} 4. Bg5 {[%clk 0:03:00]}  Be7 {[%clk 0:02:53]} 5. e3 {[%clk 0:02:59]}  O-O {[%clk 0:02:51]} 6. Qc2 {[%clk 0:02:59]}  Nc6 {[%clk 0:02:47]} 7. a3 {[%clk 0:02:58]}  b6 {[%clk 0:02:38]} 8. cxd5 {[%clk 0:02:54]}  Nxd5 {[%clk 0:02:37]} 9. Nxd5 {[%clk 0:02:49]}  Qxd5 {[%clk 0:02:29]} 10. Bxe7 {[%clk 0:02:48]}  Nxe7 {[%clk 0:02:29]} 11. Qxc7 {[%clk 0:02:48]}  Nc6 {[%clk 0:02:25]} 12. Ne2 {[%clk 0:02:35]}  Na5 {[%clk 0:01:47]} 13. Nf4 {[%clk 0:01:43]}  Qb3 {[%clk 0:01:38]} 14. Qc3 {[%clk 0:01:42]}  Qxc3+ {[%clk 0:01:30]} 15. bxc3 {[%clk 0:01:42]}  Bb7 {[%clk 0:01:31]} 16. Rb1 {[%clk 0:01:14]}  Rac8 {[%clk 0:01:26]} 17. Kd2 {[%clk 0:01:14]}  Rfd8 {[%clk 0:01:20]} 18. Bd3 {[%clk 0:01:03]}  e5 {[%clk 0:01:12]} 19. dxe5 {[%clk 0:01:03]}  g5 {[%clk 0:00:53]} 20. Ne2 {[%clk 0:00:52]}  Nc4+ {[%clk 0:00:43]} 21. Kc2 {[%clk 0:00:42]}  Nxa3+ {[%clk 0:00:43]} 22. Kb2 {[%clk 0:00:39]}  Nxb1 {[%clk 0:00:40]} 23. Bxb1 {[%clk 0:00:38]}  Rd2+ {[%clk 0:00:37]} 0-1


[Site "https://www.chess.com"]

[Event "Titled Tuesday Blitz June 20 Early 2023"]
[White "Karamsetty, Jeevan"]
[Black "Cardozo Munar, Carlos Eduardo"]
[WhiteFideId "2025337"]
[BlackFideId "4409477"]
[WhiteElo "2131"]
[BlackElo "2067"]
[Result "1-0"]
[Round "3"]
[TimeControl "180+2"]
[Date "2023.06.20"]
[WhiteClock "0:00:42"]
[BlackClock "0:00:00"]
[Board "152"]

1. g3 {[%clk 0:03:00]}  g6 {[%clk 0:02:09]} 2. Bg2 {[%clk 0:02:59]}  Bg7 {[%clk 0:02:10]} 3. Nf3 {[%clk 0:03:00]}  Nf6 {[%clk 0:02:09]} 4. O-O {[%clk 0:03:01]}  O-O {[%clk 0:02:10]} 5. d4 {[%clk 0:02:59]}  d5 {[%clk 0:02:11]} 6. b3 {[%clk 0:02:57]}  c6 {[%clk 0:02:12]} 7. Bb2 {[%clk 0:02:57]}  Nbd7 {[%clk 0:02:13]} 8. c4 {[%clk 0:02:57]}  Re8 {[%clk 0:02:13]} 9. Nbd2 {[%clk 0:02:57]}  e5 {[%clk 0:02:09]} 10. dxe5 {[%clk 0:02:47]}  Ng4 {[%clk 0:02:08]} 11. cxd5 {[%clk 0:02:47]}  cxd5 {[%clk 0:02:08]} 12. e4 {[%clk 0:02:42]}  dxe4 {[%clk 0:02:03]} 13. Nxe4 {[%clk 0:02:43]}  Ndxe5 {[%clk 0:02:04]} 14. Nxe5 {[%clk 0:02:41]}  Nxe5 {[%clk 0:02:02]} 15. Nd6 {[%clk 0:02:30]}  Re6 {[%clk 0:01:49]} 16. Nxb7 {[%clk 0:02:21]}  Bxb7 {[%clk 0:01:17]} 17. Bxb7 {[%clk 0:02:16]}  Rb8 {[%clk 0:01:18]} 18. Qxd8+ {[%clk 0:02:09]}  Rxd8 {[%clk 0:01:19]} 19. Rad1 {[%clk 0:02:05]}  Rxd1 {[%clk 0:01:11]} 20. Rxd1 {[%clk 0:02:06]}  Nf3+ {[%clk 0:01:09]} 21. Bxf3 {[%clk 0:02:01]}  Bxb2 {[%clk 0:01:09]} 22. Rd8+ {[%clk 0:02:00]}  Kg7 {[%clk 0:01:09]} 23. Rd7 {[%clk 0:02:01]}  a5 {[%clk 0:01:04]} 24. Bd5 {[%clk 0:02:01]}  Rf6 {[%clk 0:01:04]} 25. f4 {[%clk 0:02:01]}  h5 {[%clk 0:01:03]} 26. Kg2 {[%clk 0:02:00]}  Bc3 {[%clk 0:01:03]} 27. Kf3 {[%clk 0:02:00]}  g5 {[%clk 0:00:57]} 28. Ke4 {[%clk 0:01:55]}  gxf4 {[%clk 0:00:53]} 29. gxf4 {[%clk 0:01:56]}  Kg6 {[%clk 0:00:41]} 30. Bc4 {[%clk 0:01:52]}  Bb4 {[%clk 0:00:32]} 31. Rd5 {[%clk 0:01:48]}  Bd6 {[%clk 0:00:28]} 32. f5+ {[%clk 0:01:37]}  Kg5 {[%clk 0:00:29]} 33. Rxa5 {[%clk 0:01:34]}  Bxh2 {[%clk 0:00:29]} 34. a4 {[%clk 0:01:24]}  h4 {[%clk 0:00:29]} 35. Rd5 {[%clk 0:01:23]}  Bd6 {[%clk 0:00:22]} 36. Bf1 {[%clk 0:01:21]}  Kg4 {[%clk 0:00:18]} 37. Rd3 {[%clk 0:01:18]}  Bg3 {[%clk 0:00:16]} 38. Be2+ {[%clk 0:01:09]}  Kg5 {[%clk 0:00:15]} 39. a5 {[%clk 0:01:07]}  Rxf5 {[%clk 0:00:16]} 40. a6 {[%clk 0:01:07]}  Ra5 {[%clk 0:00:16]} 41. Kf3 {[%clk 0:00:56]}  f5 {[%clk 0:00:12]} 42. Rd7 {[%clk 0:00:51]}  Bb8 {[%clk 0:00:08]} 43. Rb7 {[%clk 0:00:49]}  Bh2 {[%clk 0:00:07]} 44. a7 {[%clk 0:00:44]}  Kf6 {[%clk 0:00:05]} 45. Rb6+ {[%clk 0:00:40]}  Kg5 {[%clk 0:00:04]} 46. Ra6 {[%clk 0:00:41]}  Rxa6 {[%clk 0:00:00]} 47. Bxa6 {[%clk 0:00:42]} 1-0


[Site "https://www.chess.com"]

[Event "Titled Tuesday Blitz June 20 Early 2023"]
[White "Bethke, Richard"]
[Black "Bueno, Alfeu Junior Varela"]
[WhiteFideId "12959243"]
[BlackFideId "2108879"]
[WhiteElo "2369"]
[BlackElo "2175"]
[Result "1-0"]
[Round "3"]
[TimeControl "180+2"]
[Date "2023.06.20"]
[WhiteClock "0:00:44"]
[BlackClock "0:00:00"]
[Board "154"]

1. e4 {[%clk 0:02:21]}  e6 {[%clk 0:03:00]} 2. d4 {[%clk 0:02:21]}  d5 {[%clk 0:03:01]} 3. Nd2 {[%clk 0:02:22]}  Nf6 {[%clk 0:03:00]} 4. e5 {[%clk 0:02:22]}  Nfd7 {[%clk 0:03:00]} 5. Bd3 {[%clk 0:02:23]}  c5 {[%clk 0:03:01]} 6. c3 {[%clk 0:02:23]}  Nc6 {[%clk 0:03:02]} 7. Ne2 {[%clk 0:02:24]}  cxd4 {[%clk 0:03:02]} 8. cxd4 {[%clk 0:02:24]}  f6 {[%clk 0:03:03]} 9. exf6 {[%clk 0:02:23]}  Nxf6 {[%clk 0:03:04]} 10. O-O {[%clk 0:02:23]}  Bd6 {[%clk 0:03:04]} 11. Nf3 {[%clk 0:02:24]}  Qc7 {[%clk 0:03:05]} 12. Bg5 {[%clk 0:02:23]}  O-O {[%clk 0:03:06]} 13. Rc1 {[%clk 0:02:22]}  h6 {[%clk 0:02:51]} 14. Bh4 {[%clk 0:02:21]}  Nh5 {[%clk 0:02:50]} 15. Re1 {[%clk 0:02:16]}  g5 {[%clk 0:02:37]} 16. Bg3 {[%clk 0:02:16]}  Nxg3 {[%clk 0:02:37]} 17. hxg3 {[%clk 0:02:17]}  Qg7 {[%clk 0:02:35]} 18. Bb1 {[%clk 0:02:14]}  Bc7 {[%clk 0:02:33]} 19. Qd3 {[%clk 0:02:08]}  Bb6 {[%clk 0:02:26]} 20. a3 {[%clk 0:02:04]}  Bd7 {[%clk 0:02:25]} 21. b4 {[%clk 0:02:03]}  a6 {[%clk 0:02:17]} 22. g4 {[%clk 0:01:58]}  Ne7 {[%clk 0:01:40]} 23. Ne5 {[%clk 0:01:53]}  Bb5 {[%clk 0:01:39]} 24. Qe3 {[%clk 0:01:53]}  Rf6 {[%clk 0:01:23]} 25. Ng3 {[%clk 0:01:52]}  Be8 {[%clk 0:01:22]} 26. Rc3 {[%clk 0:01:42]}  Rf4 {[%clk 0:01:20]} 27. Ne2 {[%clk 0:01:19]}  Rf6 {[%clk 0:01:14]} 28. Rec1 {[%clk 0:01:18]}  Nc6 {[%clk 0:01:10]} 29. Nxc6 {[%clk 0:01:16]}  Bxc6 {[%clk 0:01:08]} 30. Ng3 {[%clk 0:01:13]}  Rf4 {[%clk 0:01:05]} 31. Nh5 {[%clk 0:01:12]}  Qf7 {[%clk 0:00:46]} 32. Nxf4 {[%clk 0:01:10]}  gxf4 {[%clk 0:00:46]} 33. Qh3 {[%clk 0:01:06]}  Qf6 {[%clk 0:00:42]} 34. g5 {[%clk 0:01:05]}  hxg5 {[%clk 0:00:32]} 35. Qh7+ {[%clk 0:01:05]}  Kf8 {[%clk 0:00:33]} 36. Rxc6 {[%clk 0:01:04]}  bxc6 {[%clk 0:00:33]} 37. Qb7 {[%clk 0:01:04]}  Qxd4 {[%clk 0:00:21]} 38. Qxa8+ {[%clk 0:01:03]}  Ke7 {[%clk 0:00:21]} 39. Qb7+ {[%clk 0:01:02]}  Kf6 {[%clk 0:00:20]} 40. Rf1 {[%clk 0:01:01]}  f3 {[%clk 0:00:21]} 41. gxf3 {[%clk 0:00:58]}  g4 {[%clk 0:00:15]} 42. Qh7 {[%clk 0:00:54]}  Qf4 {[%clk 0:00:06]} 43. Qg6+ {[%clk 0:00:53]}  Ke7 {[%clk 0:00:07]} 44. Qxg4 {[%clk 0:00:54]}  Qh6 {[%clk 0:00:07]} 45. Re1 {[%clk 0:00:52]}  Bc7 {[%clk 0:00:06]} 46. Qg2 {[%clk 0:00:48]}  Bf4 {[%clk 0:00:05]} 47. Bf5 {[%clk 0:00:48]}  e5 {[%clk 0:00:05]} 48. Bh3 {[%clk 0:00:46]}  Kf6 {[%clk 0:00:03]} 49. Qg4 {[%clk 0:00:46]}  Ke7 {[%clk 0:00:02]} 50. Qd7+ {[%clk 0:00:46]}  Kf8 {[%clk 0:00:02]} 51. Re2 {[%clk 0:00:45]}  Qg5+ {[%clk 0:00:01]} 52. Bg4 {[%clk 0:00:45]}  Qh4 {[%clk 0:00:01]} 53. Qf5+ {[%clk 0:00:45]}  Ke7 {[%clk 0:00:01]} 54. Qh5 {[%clk 0:00:45]}  Qf6 {[%clk 0:00:00]} 55. Qh7+ {[%clk 0:00:44]} 1-0


[Site "https://www.chess.com"]

[Event "Titled Tuesday Blitz June 20 Early 2023"]
[White "Kovacsy, Barnabas"]
[Black "Berezin, Viktor"]
[WhiteFideId "769290"]
[BlackFideId "14107872"]
[WhiteElo "2130"]
[BlackElo "2310"]
[Result "1/2-1/2"]
[Round "3"]
[TimeControl "180+2"]
[Date "2023.06.20"]
[WhiteClock "0:01:39"]
[BlackClock "0:00:32"]
[Board "156"]

1. e4 {[%clk 0:03:00]}  g6 {[%clk 0:02:59]} 2. d4 {[%clk 0:03:00]}  Bg7 {[%clk 0:02:59]} 3. Nc3 {[%clk 0:02:56]}  d6 {[%clk 0:02:59]} 4. Be3 {[%clk 0:02:51]}  c6 {[%clk 0:02:58]} 5. Nf3 {[%clk 0:02:44]}  Nf6 {[%clk 0:02:58]} 6. Be2 {[%clk 0:02:42]}  O-O {[%clk 0:02:57]} 7. O-O {[%clk 0:02:42]}  Nbd7 {[%clk 0:02:58]} 8. h3 {[%clk 0:02:40]}  e5 {[%clk 0:02:58]} 9. Qd2 {[%clk 0:02:36]}  Re8 {[%clk 0:02:57]} 10. dxe5 {[%clk 0:02:34]}  Nxe5 {[%clk 0:02:52]} 11. Nxe5 {[%clk 0:02:32]}  dxe5 {[%clk 0:02:53]} 12. Qxd8 {[%clk 0:02:31]}  Rxd8 {[%clk 0:02:54]} 13. Rfd1 {[%clk 0:02:31]}  Be6 {[%clk 0:02:54]} 14. Rxd8+ {[%clk 0:02:29]}  Rxd8 {[%clk 0:02:55]} 15. Rd1 {[%clk 0:02:29]}  Rxd1+ {[%clk 0:02:50]} 16. Bxd1 {[%clk 0:02:30]}  b6 {[%clk 0:02:48]} 17. Be2 {[%clk 0:02:27]}  Ne8 {[%clk 0:02:47]} 18. Bd3 {[%clk 0:02:26]}  Nd6 {[%clk 0:02:47]} 19. Kf1 {[%clk 0:02:25]}  f5 {[%clk 0:02:47]} 20. f3 {[%clk 0:02:22]}  Kf7 {[%clk 0:02:46]} 21. Ke2 {[%clk 0:02:22]}  h5 {[%clk 0:02:25]} 22. a4 {[%clk 0:02:17]}  c5 {[%clk 0:01:53]} 23. Nb5 {[%clk 0:01:58]}  Bf8 {[%clk 0:01:18]} 24. Nxd6+ {[%clk 0:01:50]}  Bxd6 {[%clk 0:01:19]} 25. c4 {[%clk 0:01:50]}  Bd7 {[%clk 0:01:13]} 26. b3 {[%clk 0:01:50]}  Ke6 {[%clk 0:01:13]} 27. g4 {[%clk 0:01:39]}  hxg4 {[%clk 0:00:32]} 1/2-1/2


[Site "https://www.chess.com"]

[Event "Titled Tuesday Blitz June 20 Early 2023"]
[White "Rodriguez Polo, Mateo"]
[Black "Turzo, Attila"]
[WhiteFideId "24509396"]
[BlackFideId "704954"]
[WhiteElo "2117"]
[BlackElo "2523"]
[Result "1-0"]
[Round "3"]
[TimeControl "180+2"]
[Date "2023.06.20"]
[WhiteClock "0:00:07"]
[BlackClock "0:00:08"]
[Board "159"]

1. Nf3 {[%clk 0:03:00]}  Nf6 {[%clk 0:02:59]} 2. c4 {[%clk 0:03:00]}  g6 {[%clk 0:02:59]} 3. b3 {[%clk 0:03:00]}  Bg7 {[%clk 0:02:59]} 4. Bb2 {[%clk 0:03:01]}  O-O {[%clk 0:03:00]} 5. g3 {[%clk 0:03:01]}  d6 {[%clk 0:03:00]} 6. Bg2 {[%clk 0:03:02]}  e5 {[%clk 0:03:00]} 7. d4 {[%clk 0:03:02]}  e4 {[%clk 0:02:55]} 8. Nfd2 {[%clk 0:03:02]}  e3 {[%clk 0:02:49]} 9. fxe3 {[%clk 0:03:02]}  Ng4 {[%clk 0:02:47]} 10. Nf1 {[%clk 0:03:02]}  Re8 {[%clk 0:02:29]} 11. Qd3 {[%clk 0:02:56]}  Qe7 {[%clk 0:02:19]} 12. e4 {[%clk 0:02:51]}  f5 {[%clk 0:02:14]} 13. Nc3 {[%clk 0:02:47]}  fxe4 {[%clk 0:02:07]} 14. Bxe4 {[%clk 0:02:47]}  Nf6 {[%clk 0:02:02]} 15. Bf3 {[%clk 0:02:46]}  Bf5 {[%clk 0:02:02]} 16. Qd2 {[%clk 0:02:42]}  Nc6 {[%clk 0:01:58]} 17. Nd5 {[%clk 0:02:36]}  Qd7 {[%clk 0:01:38]} 18. Nfe3 {[%clk 0:02:21]}  Ne4 {[%clk 0:01:35]} 19. Qd1 {[%clk 0:02:08]}  Bh3 {[%clk 0:01:28]} 20. Qd3 {[%clk 0:02:06]}  Ng5 {[%clk 0:01:23]} 21. Bg2 {[%clk 0:01:33]}  Bxg2 {[%clk 0:01:16]} 22. Nxg2 {[%clk 0:01:34]}  Ne7 {[%clk 0:01:11]} 23. Nc3 {[%clk 0:01:16]}  Nf5 {[%clk 0:01:09]} 24. e3 {[%clk 0:00:46]}  Nxd4 {[%clk 0:00:55]} 25. O-O {[%clk 0:00:41]}  Ndf3+ {[%clk 0:00:52]} 26. Kh1 {[%clk 0:00:40]}  Qh3 {[%clk 0:00:50]} 27. Rxf3 {[%clk 0:00:38]}  Nxf3 {[%clk 0:00:41]} 28. Qd5+ {[%clk 0:00:38]}  Kh8 {[%clk 0:00:35]} 29. Qxf3 {[%clk 0:00:38]}  c6 {[%clk 0:00:35]} 30. Nf4 {[%clk 0:00:34]}  Qf5 {[%clk 0:00:32]} 31. e4 {[%clk 0:00:19]}  Qg5 {[%clk 0:00:28]} 32. Qg2 {[%clk 0:00:17]}  Re7 {[%clk 0:00:27]} 33. Rd1 {[%clk 0:00:16]}  Be5 {[%clk 0:00:22]} 34. Nd3 {[%clk 0:00:13]}  Bd4 {[%clk 0:00:20]} 35. Nf4 {[%clk 0:00:09]}  c5 {[%clk 0:00:16]} 36. Nb1 {[%clk 0:00:09]}  Bxb2 {[%clk 0:00:15]} 37. Qxb2+ {[%clk 0:00:10]}  Qe5 {[%clk 0:00:14]} 38. Qxe5+ {[%clk 0:00:10]}  dxe5 {[%clk 0:00:15]} 39. Nd5 {[%clk 0:00:10]}  Rf7 {[%clk 0:00:15]} 40. Kg2 {[%clk 0:00:09]}  Raf8 {[%clk 0:00:16]} 41. Rd2 {[%clk 0:00:09]}  Rf1 {[%clk 0:00:15]} 42. Nbc3 {[%clk 0:00:09]}  Ra1 {[%clk 0:00:14]} 43. Ne3 {[%clk 0:00:09]}  Rc1 {[%clk 0:00:13]} 44. Ncd5 {[%clk 0:00:09]}  b6 {[%clk 0:00:13]} 45. Nc7 {[%clk 0:00:05]}  Rf7 {[%clk 0:00:12]} 46. Rd8+ {[%clk 0:00:05]}  Kg7 {[%clk 0:00:12]} 47. Ne6+ {[%clk 0:00:05]}  Kf6 {[%clk 0:00:12]} 48. Re8 {[%clk 0:00:05]}  Re7 {[%clk 0:00:12]} 49. Nd5+ {[%clk 0:00:05]}  Kxe6 {[%clk 0:00:12]} 50. Rxe7+ {[%clk 0:00:05]}  Kd6 {[%clk 0:00:13]} 51. Rxa7 {[%clk 0:00:05]}  Rc2+ {[%clk 0:00:13]} 52. Kh3 {[%clk 0:00:06]}  h5 {[%clk 0:00:11]} 53. Ra6 {[%clk 0:00:05]}  Rd2 {[%clk 0:00:10]} 54. Rxb6+ {[%clk 0:00:06]}  Kd7 {[%clk 0:00:10]} 55. Rxg6 {[%clk 0:00:07]}  Rxa2 {[%clk 0:00:08]} 56. Rg5 {[%clk 0:00:07]} 1-0


[Site "https://www.chess.com"]

[Event "Titled Tuesday Blitz June 20 Early 2023"]
[White "Antonio, Jorge Carlos"]
[Black "Escanor89"]
[WhiteFideId "113190"]
[WhiteElo "2247"]
[BlackElo "2523"]
[Result "1/2-1/2"]
[Round "3"]
[TimeControl "180+2"]
[Date "2023.06.20"]
[WhiteClock "0:00:15"]
[BlackClock "0:00:13"]
[Board "160"]

1. e4 {[%clk 0:03:00]}  c5 {[%clk 0:02:59]} 2. Bc4 {[%clk 0:02:55]}  e6 {[%clk 0:02:57]} 3. d3 {[%clk 0:02:53]}  a6 {[%clk 0:02:57]} 4. Bb3 {[%clk 0:02:50]}  Nc6 {[%clk 0:02:55]} 5. f4 {[%clk 0:02:47]}  d5 {[%clk 0:02:51]} 6. Nd2 {[%clk 0:02:43]}  Nf6 {[%clk 0:02:44]} 7. Qe2 {[%clk 0:02:41]}  Nd4 {[%clk 0:02:30]} 8. Qd1 {[%clk 0:02:37]}  b5 {[%clk 0:02:19]} 9. e5 {[%clk 0:02:31]}  Nd7 {[%clk 0:02:17]} 10. c3 {[%clk 0:02:28]}  Nxb3 {[%clk 0:02:13]} 11. axb3 {[%clk 0:02:25]}  Bb7 {[%clk 0:01:48]} 12. Ngf3 {[%clk 0:02:24]}  Be7 {[%clk 0:01:46]} 13. O-O {[%clk 0:02:20]}  Qb6 {[%clk 0:01:39]} 14. d4 {[%clk 0:02:15]}  a5 {[%clk 0:01:33]} 15. Kh1 {[%clk 0:02:05]}  Ba6 {[%clk 0:01:29]} 16. Re1 {[%clk 0:02:02]}  O-O {[%clk 0:01:27]} 17. Nf1 {[%clk 0:01:55]}  b4 {[%clk 0:01:25]} 18. Ng3 {[%clk 0:01:50]}  Rab8 {[%clk 0:01:13]} 19. f5 {[%clk 0:01:45]}  bxc3 {[%clk 0:01:07]} 20. bxc3 {[%clk 0:01:43]}  Qxb3 {[%clk 0:01:07]} 21. Qxb3 {[%clk 0:01:39]}  Rxb3 {[%clk 0:01:08]} 22. Rxa5 {[%clk 0:01:36]}  Bd3 {[%clk 0:00:59]} 23. Ra7 {[%clk 0:01:31]}  Rd8 {[%clk 0:00:51]} 24. fxe6 {[%clk 0:01:24]}  fxe6 {[%clk 0:00:50]} 25. Bg5 {[%clk 0:01:21]}  Bxg5 {[%clk 0:00:36]} 26. Nxg5 {[%clk 0:01:20]}  Nf8 {[%clk 0:00:35]} 27. h4 {[%clk 0:01:10]}  h6 {[%clk 0:00:32]} 28. Nf7 {[%clk 0:01:07]}  Rd7 {[%clk 0:00:30]} 29. Rxd7 {[%clk 0:01:02]}  Nxd7 {[%clk 0:00:31]} 30. Nd8 {[%clk 0:00:59]}  cxd4 {[%clk 0:00:19]} 31. cxd4 {[%clk 0:00:56]}  Nf8 {[%clk 0:00:19]} 32. Re3 {[%clk 0:00:49]}  Rb1+ {[%clk 0:00:19]} 33. Kh2 {[%clk 0:00:48]}  Bg6 {[%clk 0:00:17]} 34. h5 {[%clk 0:00:43]}  Be8 {[%clk 0:00:16]} 35. Rc3 {[%clk 0:00:39]}  Rb8 {[%clk 0:00:16]} 36. Nc6 {[%clk 0:00:35]}  Bxc6 {[%clk 0:00:16]} 37. Rxc6 {[%clk 0:00:31]}  Rb4 {[%clk 0:00:16]} 38. Ne2 {[%clk 0:00:27]}  Rb2 {[%clk 0:00:17]} 39. Nf4 {[%clk 0:00:22]}  Rb4 {[%clk 0:00:15]} 40. Rc8 {[%clk 0:00:18]}  Kf7 {[%clk 0:00:15]} 41. Rc7+ {[%clk 0:00:15]}  Kg8 {[%clk 0:00:14]} 42. Rc8 {[%clk 0:00:15]}  Kf7 {[%clk 0:00:14]} 43. Rc7+ {[%clk 0:00:15]}  Kg8 {[%clk 0:00:13]} 44. Rc8 {[%clk 0:00:15]} 1/2-1/2


[Site "https://www.chess.com"]

[Event "Titled Tuesday Blitz June 20 Early 2023"]
[White "Mathieu, Phileas"]
[Black "Wang, Alexander J"]
[WhiteFideId "36048410"]
[BlackFideId "30955270"]
[WhiteElo "2240"]
[BlackElo "2278"]
[Result "0-1"]
[Round "3"]
[TimeControl "180+2"]
[Date "2023.06.20"]
[WhiteClock "0:00:25"]
[BlackClock "0:00:18"]
[Board "161"]

1. e4 {[%clk 0:03:00]}  c5 {[%clk 0:02:54]} 2. Nf3 {[%clk 0:02:58]}  e6 {[%clk 0:02:52]} 3. g3 {[%clk 0:02:57]}  Nc6 {[%clk 0:02:52]} 4. Bg2 {[%clk 0:02:57]}  d5 {[%clk 0:02:51]} 5. exd5 {[%clk 0:02:57]}  exd5 {[%clk 0:02:51]} 6. d4 {[%clk 0:02:58]}  c4 {[%clk 0:02:50]} 7. O-O {[%clk 0:02:57]}  Be7 {[%clk 0:02:48]} 8. Re1 {[%clk 0:02:52]}  Nf6 {[%clk 0:02:47]} 9. Nc3 {[%clk 0:02:52]}  O-O {[%clk 0:02:45]} 10. Ne5 {[%clk 0:02:52]}  Be6 {[%clk 0:02:41]} 11. Bf4 {[%clk 0:02:51]}  Bd6 {[%clk 0:02:20]} 12. Bg5 {[%clk 0:02:40]}  Be7 {[%clk 0:02:11]} 13. Qd2 {[%clk 0:02:31]}  h6 {[%clk 0:01:50]} 14. Bf4 {[%clk 0:02:25]}  Bb4 {[%clk 0:01:37]} 15. a3 {[%clk 0:02:20]}  Bxc3 {[%clk 0:01:35]} 16. Qxc3 {[%clk 0:02:20]}  Nd7 {[%clk 0:01:32]} 17. Rad1 {[%clk 0:02:14]}  Nb6 {[%clk 0:01:21]} 18. b3 {[%clk 0:02:00]}  Nxe5 {[%clk 0:01:16]} 19. dxe5 {[%clk 0:01:58]}  Rc8 {[%clk 0:01:14]} 20. Qa5 {[%clk 0:01:55]}  Qc7 {[%clk 0:01:03]} 21. Be3 {[%clk 0:01:35]}  Nd7 {[%clk 0:00:32]} 22. Bxd5 {[%clk 0:01:28]}  Qxa5 {[%clk 0:00:29]} 23. b4 {[%clk 0:01:22]}  Qc7 {[%clk 0:00:27]} 24. Bg2 {[%clk 0:01:17]}  Nxe5 {[%clk 0:00:28]} 25. Bd4 {[%clk 0:01:13]}  Nc6 {[%clk 0:00:24]} 26. Bc3 {[%clk 0:01:13]}  Rcd8 {[%clk 0:00:23]} 27. Rc1 {[%clk 0:01:14]}  Rd7 {[%clk 0:00:23]} 28. Re4 {[%clk 0:01:14]}  Bd5 {[%clk 0:00:22]} 29. Rg4 {[%clk 0:01:12]}  f6 {[%clk 0:00:22]} 30. Bf1 {[%clk 0:01:10]}  Be6 {[%clk 0:00:22]} 31. Rf4 {[%clk 0:01:09]}  g5 {[%clk 0:00:21]} 32. Re4 {[%clk 0:01:08]}  Bd5 {[%clk 0:00:22]} 33. Ree1 {[%clk 0:01:05]}  Re7 {[%clk 0:00:21]} 34. Red1 {[%clk 0:01:06]}  Bf3 {[%clk 0:00:21]} 35. Rd2 {[%clk 0:01:04]}  Rd7 {[%clk 0:00:21]} 36. Bxc4+ {[%clk 0:01:03]}  Kg7 {[%clk 0:00:21]} 37. Bd3 {[%clk 0:01:04]}  Rfd8 {[%clk 0:00:19]} 38. Bb2 {[%clk 0:01:01]}  Ne5 {[%clk 0:00:20]} 39. Kf1 {[%clk 0:00:51]}  Nxd3 {[%clk 0:00:20]} 40. cxd3 {[%clk 0:00:52]}  Qb6 {[%clk 0:00:20]} 41. d4 {[%clk 0:00:49]}  Qb5+ {[%clk 0:00:20]} 42. Kg1 {[%clk 0:00:49]}  Rd6 {[%clk 0:00:19]} 43. Rc5 {[%clk 0:00:49]}  Qe8 {[%clk 0:00:18]} 44. Rc1 {[%clk 0:00:45]}  Rc6 {[%clk 0:00:19]} 45. Rf1 {[%clk 0:00:42]}  Rd7 {[%clk 0:00:19]} 46. d5 {[%clk 0:00:42]}  Rc4 {[%clk 0:00:19]} 47. h3 {[%clk 0:00:40]}  Qc8 {[%clk 0:00:19]} 48. Re1 {[%clk 0:00:34]}  Rxd5 {[%clk 0:00:19]} 49. Rxd5 {[%clk 0:00:31]}  Bxd5 {[%clk 0:00:19]} 50. Re7+ {[%clk 0:00:30]}  Kg6 {[%clk 0:00:19]} 51. Re1 {[%clk 0:00:25]}  Qxh3 {[%clk 0:00:18]} 0-1


[Site "https://www.chess.com"]